bitfinex-derivatives/quotes_SOLF0:USTF0_20250310
["timestamp","ask_amount","ask_price","bid_price","bid_amount"]
[1741590265930,13.86309125,128.26,128.18,29.52]
[1741590266132,13.86309125,128.24,128.15,29.54]
[1741590266327,29.54,128.23,128.15,29.54]
[1741590267026,0.05001414,128.21,128.18,0.05060578]
[1741590267737,0.05001414,128.21,128.18,13.91369703]
[1741590268638,7.8006,128.2,128.18,13.91369703]
[1741590268833,7.8006,128.2,128.18,0.05060578]
[1741590269640,7.8007,128.19,128.18,0.05060578]
[1741590270936,0.05001414,128.21,128.18,0.05060578]
[1741590271143,0.05001414,128.21,128.18,13.91369703]
[1741590271443,0.05001414,128.21,128.18,0.05060578]
[1741590271637,7.8007,128.19,128.18,0.05060578]
[1741590273132,7.8007,128.19,128.18,5.78e-06]
[1741590274143,7.8003,128.2,128.18,5.78e-06]
[1741590274446,0.05001414,128.21,128.18,5.78e-06]
[1741590274644,0.05001414,128.21,128.18,13.86309703]
[1741590275242,0.05001414,128.21,128.18,5.78e-06]
[1741590275447,7.84971414,128.21,128.18,5.78e-06]
[1741590276240,7.8005,128.2,128.18,5.78e-06]
[1741590276644,7.84971414,128.21,128.18,5.78e-06]
[1741590278250,7.84971414,128.21,128.18,7.80130578]
[1741590278851,7.84971414,128.21,128.18,5.78e-06]
[1741590279044,7.8002,128.2,128.18,5.78e-06]
[1741590279344,0.05001414,128.21,128.18,5.78e-06]
[1741590280258,7.84971414,128.21,128.18,7.80110578]
[1741590281258,0.05001414,128.21,128.2,21.66319125]
[1741590281453,0.05001414,128.21,128.2,51.16319125]
[1741590281663,9.7922,128.27,128.22,7.7983]
[1741590281965,6.2763,128.31,128.24,13.86309125]
[1741590282253,7.795,128.29,128.25,7.7966]
[1741590282856,0.05492894,128.28,128.26,0.05711708]
[1741590283054,43.82309125,128.36,128.27,29.96]
[1741590283357,29.96,128.36,128.28,13.86309125]
[1741590283550,0.05521211,128.33,128.28,15.88309125]
[1741590283756,0.05521211,128.33,128.31,0.05601262]
[1741590283952,7.7928,128.32,128.31,0.05601262]
[1741590284257,7.7928,128.32,128.27,30.16]
[1741590284258,13.86309125,128.32,128.27,30.16]
[1741590284453,30.18,128.31,128.24,44.04309125]
[1741590284660,13.86309125,128.3,128.24,30.18]
[1741590285254,32.1904,128.31,128.24,44.04309125]
[1741590285454,0.05505828,128.28,128.26,0.05059006]
[1741590285852,0.05505828,128.28,128.27,30.34]
[1741590286052,4.0184,128.37,128.27,30.34]
[1741590286255,4.0184,128.37,128.29,13.86309125]
[1741590286461,13.86309125,128.36,128.27,48.33489125]
[1741590286657,13.86309125,128.34,128.27,30.34]
[1741590286862,13.86309125,128.32,128.27,30.34]
[1741590287064,7.7957,128.28,128.24,30.5]
[1741590287260,2.07039161,128.31,128.24,30.5]
[1741590287463,2.0145,128.31,128.25,0.05943061]
[1741590287770,7.7965,128.26,128.25,0.05943061]
[1741590288059,0.05839257,128.29,128.25,0.05943061]
[1741590288766,7.7965,128.26,128.25,0.05943061]
[1741590290169,7.7995,128.21,128.2,30.46]
[1741590290466,30.48,128.26,128.2,30.46]
[1741590290867,7.7989,128.23,128.2,30.46]
[1741590291269,7.7981,128.24,128.2,30.46]
[1741590291569,0.05624279,128.23,128.2,30.5132928]
[1741590292468,7.85504279,128.23,128.2,30.5132928]
[1741590292969,0.05624279,128.23,128.2,30.5132928]
[1741590293770,7.85454279,128.23,128.2,30.5132928]
[1741590294067,0.05624279,128.23,128.2,38.3131928]
[1741590294266,0.05624279,128.23,128.2,30.5132928]
[1741590294469,0.05624279,128.23,128.22,7.7989]
[1741590294669,7.796,128.27,128.22,7.7989]
[1741590295167,7.7955,128.28,128.23,30.46]
[1741590295570,261.2915,128.3,128.23,30.46]
[1741590295767,0.05889708,128.27,128.24,0.05174932]
[1741590296160,0.05889708,128.27,128.24,7.84934932]
[1741590297662,0.05889708,128.27,128.24,0.05174932]
[1741590297868,0.05889708,128.27,128.24,22.12638926]
[1741590298064,30.46,128.32,128.24,0.05174932]
[1741590298274,7.795,128.29,128.23,30.46]
[1741590298472,30.46,128.32,128.23,30.46]
[1741590299171,30.46,128.32,128.26,0.05371946]
[1741590299475,7.7945,128.3,128.27,30.48]
[1741590299676,30.46,128.32,128.27,30.48]
[1741590300078,7.795,128.29,128.27,30.48]
[1741590300279,30.46,128.32,128.26,0.05371946]
[1741590300576,7.7951,128.29,128.26,0.05371946]
[1741590300771,30.46,128.32,128.26,0.05371946]
[1741590301574,7.7958,128.27,128.26,0.05371946]
[1741590301973,30.46,128.32,128.26,0.05371946]
[1741590302576,7.7958,128.28,128.26,0.05371946]
[1741590303171,30.46,128.32,128.26,0.05371946]
[1741590303474,7.7955,128.28,128.26,0.05371946]
[1741590303677,30.46,128.32,128.26,0.05371946]
[1741590303874,7.7953,128.28,128.26,0.05371946]
[1741590304173,30.46,128.32,128.26,0.05371946]
[1741590304977,7.7952,128.29,128.26,0.05371946]
[1741590306568,7.7944,128.3,128.26,7.84981946]
[1741590307185,30.46,128.32,128.26,7.84981946]
[1741590307186,7.7957,128.28,128.26,0.05371946]
[1741590307368,30.46,128.32,128.26,0.05371946]
[1741590307772,7.7958,128.27,128.26,0.05371946]
[1741590308080,30.66,128.28,128.21,30.66]
[1741590308473,7.7984,128.23,128.21,30.66]
[1741590309079,7.85712349,128.23,128.21,30.71663769]
[1741590309583,7.7989,128.22,128.21,30.71663769]
[1741590309982,0.05872349,128.23,128.21,0.05663769]
[1741590310784,7.85742349,128.23,128.21,0.05663769]
[1741590310981,0.05872349,128.23,128.21,0.05663769]
[1741590311182,0.05872349,128.23,128.18,30.64]
[1741590311783,0.05872349,128.23,128.16,277.35543036]
[1741590311784,7.8005,128.2,128.16,277.35543036]
[1741590311978,52.71463994,128.25,128.15,2.0743]
[1741590312178,22.07463994,128.23,128.12,218.16693994]
[1741590312380,0.04958423,128.21,128.12,248.78693994]
[1741590312677,22.07463994,128.21,128.12,192.0]
[1741590312879,7.8038,128.14,128.12,192.0]
[1741590313087,32.6422,128.2,128.11,30.6]
[1741590313279,32.6422,128.2,128.1,2.0843]
[1741590313480,32.6422,128.2,128.1,32.6643]
[1741590313680,0.05968536,128.16,128.14,0.05324475]
[1741590314088,7.8034,128.15,128.14,0.05324475]
[1741590314289,0.05968536,128.16,128.14,0.05324475]
[1741590315383,0.05968536,128.16,128.14,7.85654475]
[1741590315590,0.05968536,128.16,128.14,0.05324475]
[1741590316682,0.05968536,128.16,128.15,7.8031]
[1741590316989,1.983,128.21,128.14,0.05324475]
[1741590317292,1.983,128.21,128.16,7.8024]
[1741590317484,1.983,128.21,128.16,30.46]
[1741590317683,32.4987,128.23,128.16,52.53463994]
[1741590317981,0.05870595,128.21,128.18,0.05383372]
[1741590320894,7.85820595,128.21,128.18,0.05383372]
[1741590321091,0.05870595,128.21,128.18,0.05383372]
[1741590321294,7.8007,128.19,128.18,0.05383372]
[1741590321593,32.4692,128.2,128.12,30.36]
[1741590321787,2.01,128.19,128.12,30.36]
[1741590321989,7.8024,128.17,128.12,30.36]
[1741590322188,2.01,128.19,128.12,30.36]
[1741590322793,7.8031,128.16,128.14,0.05019865]
[1741590323194,7.8042,128.14,128.09,38.1066]
[1741590323693,52.39463994,128.17,128.09,30.3]
[1741590323892,7.8036,128.15,128.1,7.8058]
[1741590324097,30.32,128.17,128.09,30.3]
[1741590324293,7.805,128.12,128.07,7.808]
[1741590324695,0.05928464,128.11,128.08,0.05371944]
[1741590325497,30.47928464,128.11,128.08,0.05371944]
[1741590325694,7.8068,128.09,128.08,0.05371944]
[1741590326195,0.05928464,128.11,128.08,0.05371944]
[1741590327396,0.05928464,128.11,128.09,30.52]
[1741590327792,0.05928464,128.11,128.1,7.8062]
[1741590328499,7.8021,128.17,128.13,7.8043]
[1741590329098,7.8021,128.17,128.12,30.48]
[1741590329301,7.8028,128.16,128.12,30.48]
[1741590329500,30.5,128.18,128.12,30.48]
[1741590329798,0.05196011,128.15,128.13,0.05280444]
[1741590331501,7.8038,128.14,128.13,0.05280444]
[1741590332098,7.85526011,128.15,128.13,0.05280444]
[1741590332402,0.05196011,128.15,128.13,0.05280444]
[1741590335404,0.05196011,128.15,128.14,7.8038]
[1741590337205,0.05196011,128.15,128.13,7.85690444]
[1741590337410,0.05196011,128.15,128.13,0.05280444]
[1741590337809,7.85566011,128.15,128.13,0.05280444]
[1741590338013,0.05196011,128.15,128.13,0.05280444]
[1741590338404,0.05196011,128.15,128.13,7.85710444]
[1741590339005,0.05196011,128.15,128.13,0.05280444]
[1741590341713,0.05196011,128.15,128.14,7.8038]
[1741590342710,0.05196011,128.15,128.13,0.05280444]
[1741590343513,0.05196011,128.15,128.14,7.8038]
[1741590343919,0.05196011,128.15,128.13,0.05280444]
[1741590344807,7.8038,128.14,128.13,0.05280444]
[1741590346013,7.85536011,128.15,128.13,0.05280444]
[1741590346514,0.05196011,128.15,128.13,0.05280444]
[1741590346709,7.8038,128.14,128.13,0.05280444]
[1741590347112,7.85536011,128.15,128.13,0.05280444]
[1741590347411,0.05196011,128.15,128.13,0.05280444]
[1741590347915,13.86094891,128.15,128.07,2.066]
[1741590348112,44.1889888,128.15,128.08,30.38]
[1741590348317,44.1889888,128.15,128.08,38.1874]
[1741590348517,44.1889888,128.15,128.08,30.38]
[1741590348913,7.8048,128.13,128.09,7.8068]
[1741590349117,7.85528173,128.13,128.1,0.05105665]
[1741590349626,0.05048173,128.13,128.1,0.05105665]
[1741590350517,7.8056,128.11,128.1,0.05105665]
[1741590351723,7.805,128.12,128.1,0.05105665]
[1741590352213,0.05048173,128.13,128.1,0.05105665]
[1741590352618,7.8056,128.11,128.1,0.05105665]
[1741590354326,7.8056,128.11,128.1,5.665e-05]
[1741590354630,13.8089888,128.11,128.03,4.0545]
[1741590354830,13.8089888,128.11,128.03,11.8646]
[1741590355025,7.8084,128.07,128.03,11.8646]
[1741590355525,7.86068698,128.06,128.04,0.05646306]
[1741590355725,7.809,128.06,128.04,0.05646306]
[1741590355921,0.05932013,128.06,128.04,0.05646306]
[1741590356121,7.8092,128.05,128.04,0.05646306]
[1741590356326,0.05932013,128.06,128.04,0.05646306]
[1741590356828,7.86832013,128.06,128.04,0.05646306]
[1741590358632,0.05932013,128.06,128.04,0.05646306]
[1741590359230,30.53932013,128.06,127.99,32.5834]
[1741590359427,7.81,128.04,127.98,7.8131]
[1741590359637,7.81,128.04,127.97,46.4415888]
[1741590360232,7.81,128.04,127.98,7.8133]
[1741590360429,15.7647888,128.05,127.99,0.0499508]
[1741590360430,0.05626075,128.02,127.99,0.0499508]
[1741590362036,7.86756075,128.02,127.99,0.0499508]
[1741590362237,0.05626075,128.02,127.99,0.0499508]
[1741590362841,0.05626075,128.02,128.0,7.8122]
[1741590363238,0.05626075,128.02,127.99,0.0499508]
[1741590364040,0.05626075,128.02,127.99,7.8626508]
[1741590364838,30.53626075,128.02,127.99,0.0499508]
[1741590366142,7.8123,128.0,127.99,0.0499508]
[1741590367141,30.53626075,128.02,127.99,0.0499508]
[1741590367342,0.05626075,128.02,127.99,0.0499508]
[1741590367644,0.05626075,128.02,127.99,7.8624508]
[1741590367945,0.05626075,128.02,127.99,0.0499508]
[1741590368242,7.86766075,128.02,127.99,0.0499508]
[1741590368644,0.05626075,128.02,127.99,0.0499508]
[1741590368834,30.62,128.01,127.94,4.0287]
[1741590369144,44.4289888,128.01,127.94,4.0287]
[1741590369448,44.4289888,128.01,127.94,11.8445]
[1741590369449,7.8132,127.99,127.94,11.8445]
[1741590369847,44.4289888,128.01,127.94,4.0287]
[1741590370047,7.8146,127.97,127.95,0.04986863]
[1741590370247,0.05261562,127.98,127.95,0.04986863]
[1741590371049,32.6158,128.05,127.96,22.15981101]
[1741590371235,7.8101,128.04,128.0,7.8123]
[1741590371439,32.6158,128.05,127.96,22.15981101]
[1741590371440,32.6158,128.05,127.99,30.68]
[1741590371749,7.8101,128.04,128.0,7.8119]
[1741590371944,30.66,128.05,127.99,30.68]
[1741590372246,0.05339548,128.03,128.01,7.86887959]
[1741590372441,0.05339548,128.03,128.01,0.05717959]
[1741590372843,0.05339548,128.03,128.02,38.4311]
[1741590373242,0.05339548,128.03,128.02,30.62]
[1741590375137,0.05339548,128.03,128.02,38.4311]
[1741590375647,0.05339548,128.03,128.02,30.62]
[1741590375844,32.6262,128.09,128.02,30.62]
[1741590376744,32.6262,128.09,128.04,7.8097]
[1741590377144,0.0553729,128.08,128.05,0.05968501]
[1741590378040,0.0553729,128.08,128.05,7.86848501]
[1741590378245,0.0553729,128.08,128.05,0.05968501]
[1741590378548,0.0553729,128.08,128.06,7.8082]
[1741590379548,0.0553729,128.08,128.05,30.53968501]
[1741590379946,0.0553729,128.08,128.05,0.05968501]
[1741590380949,0.0553729,128.08,128.05,2.00128501]
[1741590381349,7.8052,128.12,128.05,24.16109602]
[1741590381545,7.8052,128.12,128.06,1.9453]
[1741590381746,2.1234,128.14,128.07,30.42]
[1741590382446,7.8063,128.1,128.07,30.42]
[1741590382648,7.8063,128.1,128.09,0.0557507]
[1741590383854,7.806,128.11,128.09,0.0557507]
[1741590384551,7.8062,128.1,128.09,0.0557507]
[1741590385356,7.8058,128.11,128.09,0.0557507]
[1741590385558,0.05969518,128.12,128.09,0.0557507]
[1741590386055,7.8056,128.11,128.09,0.0557507]
[1741590386458,7.8062,128.1,128.09,0.0557507]
[1741590386650,0.05969518,128.12,128.09,0.0557507]
[1741590387660,7.806,128.11,128.09,0.0557507]
[1741590387858,0.05969518,128.12,128.09,0.0557507]
[1741590388958,7.8056,128.11,128.09,0.0557507]
[1741590389361,0.05969518,128.12,128.09,0.0557507]
[1741590389562,7.86509518,128.12,128.09,0.0557507]
[1741590391458,7.8057,128.11,128.09,0.0557507]
[1741590391861,0.05969518,128.12,128.09,0.0557507]
[1741590392062,7.8062,128.1,128.09,0.0557507]
[1741590394358,13.82320377,128.1,128.02,4.0688]
[1741590394566,13.82320377,128.1,128.02,34.3488]
[1741590394567,7.8093,128.05,128.02,34.3488]
[1741590395063,13.82320377,128.08,128.02,34.3488]
[1741590395263,7.8095,128.05,128.02,34.3488]
[1741590395461,13.82320377,128.08,128.02,42.1594]
[1741590395663,0.05366885,128.05,128.02,34.40843135]
[1741590396058,0.05366885,128.05,128.03,7.8101]
[1741590396667,0.05366885,128.05,128.02,34.40843135]
[1741590397666,0.05366885,128.05,128.02,42.21913135]
[1741590398964,0.05366885,128.05,128.02,34.40843135]
[1741590399474,4.053,128.11,128.03,13.82320377]
[1741590399665,7.8071,128.09,128.05,7.8089]
[1741590400667,0.05173268,128.08,128.06,0.05072769]
[1741590401063,0.05173268,128.08,128.06,7.85932769]
[1741590402174,0.05173268,128.08,128.06,0.05072769]
[1741590402672,7.808,128.07,128.06,0.05072769]
[1741590403367,7.808,128.07,128.06,2.769e-05]
[1741590403573,7.8108,128.03,128.01,30.18]
[1741590404174,7.8101,128.04,128.01,30.18]
[1741590404673,0.05475376,128.04,128.01,30.23586719]
[1741590404975,0.05475376,128.04,128.01,46.01597096]
[1741590405170,30.18,128.09,128.03,7.8102]
[1741590405775,7.8088,128.06,128.01,45.96010377]
[1741590405976,7.8088,128.06,128.02,7.8109]
[1741590406273,0.05746542,128.05,128.03,0.05897838]
[1741590407074,7.86706542,128.05,128.03,0.05897838]
[1741590407274,0.05746542,128.05,128.03,0.05897838]
[1741590407678,7.86696542,128.05,128.03,0.05897838]
[1741590407976,0.05746542,128.05,128.03,0.05897838]
[1741590408379,0.05746542,128.05,128.03,7.86907838]
[1741590408976,0.05746542,128.05,128.03,0.05897838]
[1741590409881,7.86706542,128.05,128.03,0.05897838]
[1741590410380,0.05746542,128.05,128.03,0.05897838]
[1741590410577,7.8099,128.04,128.03,0.05897838]
[1741590410976,0.05746542,128.05,128.03,0.05897838]
[1741590411374,7.86706542,128.05,128.03,0.05897838]
[1741590411573,0.05746542,128.05,128.03,0.05897838]
[1741590411981,7.8099,128.04,128.03,0.05897838]
[1741590413487,7.86696542,128.05,128.03,0.05897838]
[1741590413983,7.8099,128.04,128.03,0.05897838]
[1741590414889,7.8113,128.02,127.99,32.1298]
[1741590415090,7.8113,128.02,127.99,1.9898]
[1741590415701,43.92320377,128.06,127.99,1.9898]
[1741590415888,7.8119,128.01,127.99,1.9898]
[1741590416291,7.86506835,128.01,127.99,2.04013804]
[1741590416596,7.8123,128.0,127.99,0.05033804]
[1741590417000,0.05316835,128.01,127.99,0.05033804]
[1741590417193,7.86526835,128.01,127.99,0.05033804]
[1741590418192,7.8123,128.0,127.99,0.05033804]
[1741590419192,7.8149,127.96,127.94,1.9449]
[1741590419688,7.8149,127.96,127.93,32.0792]
[1741590419894,7.8142,127.97,127.93,39.8956]
[1741590420398,0.05019396,127.96,127.94,0.05589113]
[1741590422407,0.05019396,127.96,127.95,7.8153]
[1741590423099,0.05019396,127.96,127.94,0.05589113]
[1741590424806,0.05019396,127.96,127.94,7.87179113]
[1741590425110,0.05019396,127.96,127.94,0.05589113]
[1741590425607,7.86509396,127.96,127.94,0.05589113]
[1741590426612,7.8153,127.95,127.94,0.05589113]
[1741590426797,0.05019396,127.96,127.94,0.05589113]
[1741590427712,7.86529396,127.96,127.94,0.05589113]
[1741590428113,0.05019396,127.96,127.94,0.05589113]
[1741590428314,0.05019396,127.96,127.94,7.87149113]
[1741590428511,0.05019396,127.96,127.94,0.05589113]
[1741590429209,7.8153,127.95,127.94,0.05589113]
[1741590429413,0.05019396,127.96,127.94,0.05589113]
[1741590429915,0.05019396,127.96,127.94,7.87159113]
[1741590430116,0.05019396,127.96,127.94,0.05589113]
[1741590431619,0.05019396,127.96,127.94,7.87149113]
[1741590434017,0.05019396,127.96,127.94,0.05589113]
[1741590435224,0.05019396,127.96,127.94,7.87149113]
[1741590435424,0.05019396,127.96,127.94,0.05589113]
[1741590436015,29.92,128.0,127.96,7.8146]
[1741590436216,15.97200377,128.03,127.94,1.9415]
[1741590436423,7.812,128.01,127.97,7.8137]
[1741590436621,15.97200377,128.03,127.95,47.77910377]
[1741590436815,15.97200377,128.03,127.95,33.9559]
[1741590437210,0.0519122,128.0,127.98,0.05469333]
[1741590437820,7.8646122,128.0,127.98,0.05469333]
[1741590438320,7.8129,127.99,127.98,0.05469333]
[1741590438722,13.82320377,127.99,127.92,29.9]
[1741590439023,7.8151,127.96,127.92,37.717]
[1741590439213,13.82320377,127.99,127.92,29.9]
[1741590439413,13.82320377,127.97,127.92,29.9]
[1741590439623,13.82320377,127.97,127.91,1.9992]
[1741590439924,0.0535921,127.96,127.93,0.05668848]
[1741590440322,13.82320377,127.95,127.93,0.05668848]
[1741590440524,7.816,127.94,127.93,0.05668848]
[1741590441226,7.8156,127.95,127.93,0.05668848]
[1741590441417,0.0535921,127.96,127.93,0.05668848]
[1741590443624,0.0535921,127.96,127.93,7.87318848]
[1741590444327,0.0535921,127.96,127.94,7.8158]
[1741590444527,0.0535921,127.96,127.93,0.05668848]
[1741590445214,0.0535921,127.96,127.94,7.816]
[1741590446127,0.0535921,127.96,127.93,7.87298848]
[1741590448127,0.0535921,127.96,127.94,7.8159]
[1741590450220,0.0535921,127.96,127.93,0.05668848]
[1741590451921,7.8153,127.95,127.93,0.05668848]
[1741590452125,0.0535921,127.96,127.93,0.05668848]
[1741590452518,43.64320377,127.95,127.88,37.6393]
[1741590452922,7.8166,127.93,127.88,37.6393]
[1741590453320,7.8166,127.93,127.89,7.819]
[1741590453625,0.05566558,127.92,127.9,0.058758]
[1741590453925,31.9035,127.98,127.91,29.82]
[1741590454224,7.8148,127.96,127.91,29.82]
[1741590454423,0.05352208,127.96,127.93,0.05714522]
[1741590454622,7.8155,127.95,127.93,0.05714522]
[1741590454823,0.05352208,127.96,127.93,0.05714522]
[1741590455724,7.86852208,127.96,127.93,0.05714522]
[1741590455927,0.05352208,127.96,127.93,0.05714522]
[1741590456621,7.8157,127.95,127.93,0.05714522]
[1741590457827,7.816,127.94,127.93,0.05714522]
[1741590459530,7.8183,127.91,127.88,37.5996]
[1741590459724,43.60320377,127.95,127.88,29.78]
[1741590459924,7.8169,127.93,127.88,29.78]
[1741590460124,29.78,127.95,127.89,7.8187]
[1741590460627,0.05182699,127.93,127.91,0.05459551]
[1741590463827,7.8172,127.92,127.91,0.05459551]
[1741590465531,7.8189,127.9,127.87,4.1969]
[1741590465731,43.56320377,127.92,127.82,13.82320377]
[1741590465928,2.069,127.91,127.83,29.74]
[1741590466231,13.82320377,127.9,127.81,31.7205]
[1741590466426,13.82320377,127.9,127.81,33.8386]
[1741590466624,7.87885777,127.87,127.84,0.0562903]
[1741590467231,0.05815777,127.87,127.84,0.0562903]
[1741590467932,7.8213,127.86,127.84,0.0562903]
[1741590468131,0.05815777,127.87,127.84,0.0562903]
[1741590468529,7.8215,127.85,127.84,0.0562903]
[1741590468937,43.54320377,127.86,127.78,15.96570377]
[1741590469134,7.8227,127.83,127.78,53.51120377]
[1741590469438,7.8227,127.83,127.78,45.68570377]
[1741590469630,7.8227,127.83,127.79,7.8251]
[1741590469826,45.67150377,127.86,127.78,45.68570377]
[1741590470024,13.82320377,127.84,127.77,9.7771]
[1741590470237,29.753714,127.83,127.81,0.05098204]
[1741590470531,37.576814,127.83,127.81,0.05098204]
[1741590470733,29.753714,127.83,127.81,0.05098204]
[1741590471238,37.576814,127.83,127.81,0.05098204]
[1741590472035,29.753714,127.83,127.81,0.05098204]
[1741590473033,0.053714,127.83,127.81,0.05098204]
[1741590473337,0.053714,127.83,127.81,7.87488204]
[1741590473740,0.053714,127.83,127.81,0.05098204]
[1741590475941,7.876414,127.83,127.81,0.05098204]
[1741590476741,0.053714,127.83,127.81,0.05098204]
[1741590477639,0.053714,127.83,127.82,7.8233]
[1741590478035,0.053714,127.83,127.81,0.05098204]
[1741590479142,29.633714,127.83,127.81,0.05098204]
[1741590479440,7.8251,127.8,127.74,7.8278]
[1741590479741,37.4251,127.8,127.74,7.8278]
[1741590479941,29.6,127.8,127.74,7.8278]
[1741590480240,29.6,127.8,127.75,7.8275]
[1741590480443,0.05184635,127.78,127.76,0.0546531]
[1741590480737,7.87804635,127.78,127.76,0.0546531]
[1741590480941,0.05184635,127.78,127.76,0.0546531]
[1741590481944,7.8264,127.77,127.76,0.0546531]
[1741590482243,37.4064,127.77,127.76,0.0546531]
[1741590482439,7.8279,127.75,127.7,7.8305]
[1741590482746,7.8279,127.75,127.68,209.90550377]
[1741590483044,29.58,127.77,127.72,13.82320377]
[1741590483241,29.58,127.79,127.72,13.82320377]
[1741590483447,7.8262,127.78,127.74,7.828]
[1741590483641,0.05845438,127.77,127.74,0.05747548]
[1741590484643,7.8275,127.76,127.74,0.05747548]
[1741590484846,29.61845438,127.77,127.74,0.05747548]
[1741590485446,7.827,127.76,127.74,0.05747548]
[1741590486244,29.61845438,127.77,127.74,0.05747548]
[1741590486449,0.05845438,127.77,127.74,0.05747548]
[1741590486645,0.05845438,127.77,127.75,7.8272]
[1741590486852,0.05845438,127.77,127.74,0.05747548]
[1741590487750,0.05845438,127.77,127.75,7.8272]
[1741590487945,1.9399,127.82,127.74,13.88067925]
[1741590488247,9.7634,127.82,127.78,7.8254]
[1741590489246,0.04940685,127.81,127.79,0.0504592]
[1741590490046,0.04940685,127.81,127.8,7.8245]
[1741590490244,0.04940685,127.81,127.79,0.0504592]
[1741590491146,0.04940685,127.81,127.79,7.8755592]
[1741590492155,0.04940685,127.81,127.79,0.0504592]
[1741590492750,0.04940685,127.81,127.8,7.8245]
[1741590493656,19.90730377,127.88,127.79,43.33366297]
[1741590493954,19.90730377,127.88,127.79,43.28320377]
[1741590494454,7.8211,127.86,127.79,43.28320377]
[1741590494752,7.8218,127.85,127.81,7.8237]
[1741590494940,0.05882195,127.84,127.81,7.87355284]
[1741590495655,0.05882195,127.84,127.82,7.8232]
[1741590495946,0.05882195,127.84,127.81,0.04985284]
[1741590497652,7.88122195,127.84,127.81,0.04985284]
[1741590497959,0.05882195,127.84,127.81,0.04985284]
[1741590498449,0.05882195,127.84,127.82,7.8232]
[1741590499048,0.05882195,127.84,127.81,0.04985284]
[1741590499249,43.22320377,127.9,127.82,29.4]
[1741590499452,287.56,127.91,127.83,13.82320377]
[1741590499753,13.82320377,127.9,127.83,2.0064]
[1741590499952,15.82470377,127.9,127.83,2.0064]
[1741590500256,45.24470377,127.9,127.83,9.829]
[1741590500555,0.04944862,127.88,127.85,0.05364907]
[1741590501653,7.8207,127.87,127.85,0.05364907]
[1741590501847,0.04944862,127.88,127.85,0.05364907]
[1741590502052,0.04944862,127.88,127.85,29.41364907]
[1741590502256,0.04944862,127.88,127.85,37.23494907]
[1741590502553,0.04944862,127.88,127.85,29.41364907]
[1741590502956,0.04944862,127.88,127.86,7.8207]
[1741590503358,0.04944862,127.88,127.85,29.41364907]
[1741590504152,0.04944862,127.88,127.85,37.23454907]
[1741590504549,0.04944862,127.88,127.85,29.41364907]
[1741590505151,0.04944862,127.88,127.86,7.8204]
[1741590505352,0.04944862,127.88,127.85,29.41364907]
[1741590505653,0.04944862,127.88,127.86,13.82320377]
[1741590505857,7.8173,127.92,127.86,17.93940377]
[1741590506257,7.8173,127.92,127.89,7.8187]
[1741590506858,7.87282375,127.92,127.89,7.87027601]
[1741590507753,0.05552375,127.92,127.89,0.05157601]
[1741590507958,43.17872752,127.92,127.89,0.05157601]
[1741590508159,43.17872752,127.92,127.84,29.3]
[1741590508361,7.8196,127.88,127.84,37.1217]
[1741590509358,0.05438973,127.87,127.85,0.05912223]
[1741590509762,0.05438973,127.87,127.85,7.88052223]
[1741590510459,7.8208,127.86,127.85,0.05912223]
[1741590514059,7.8208,127.86,127.85,2.223e-05]
[1741590514262,50.88400377,127.86,127.85,2.223e-05]
[1741590519663,7.8249,127.8,127.77,2.1283]
[1741590520464,7.8242,127.81,127.77,2.1283]
[1741590520664,0.05389737,127.8,127.78,0.05833893]
[1741590523673,7.87869737,127.8,127.78,0.05833893]
[1741590524570,7.8251,127.79,127.78,0.05833893]
[1741590525168,0.05389737,127.8,127.74,9.8777]
[1741590525777,0.05389737,127.8,127.75,7.8276]
[1741590525969,0.05389737,127.8,127.74,2.0499]
[1741590526270,7.87849737,127.8,127.76,7.8266]
[1741590526577,0.05389737,127.8,127.76,0.05824984]
[1741590527279,7.8252,127.79,127.76,0.05824984]
[1741590527477,0.05389737,127.8,127.76,0.05824984]
[1741590527776,7.8253,127.79,127.76,0.05824984]
[1741590528789,0.05389737,127.8,127.76,0.05824984]
[1741590529580,7.8259,127.78,127.76,0.05824984]
[1741590530168,0.05389737,127.8,127.76,0.05824984]
[1741590530885,13.82320377,127.79,127.7,7.8304]
[1741590531181,7.8295,127.72,127.69,194.0273]
[1741590531373,13.82320377,127.75,127.69,2.0273]
[1741590531774,7.83,127.72,127.69,2.0273]
[1741590532176,7.88002282,127.72,127.69,2.08203995]
[1741590532679,7.8303,127.71,127.69,2.08203995]